[Event "Titled Tuesday Blitz April 11 Early 2023"]
[White "Lehtosaari, Mauri"]
[Black "Amilal Munkhdalai"]
[WhiteFideId "501999"]
[BlackFideId "4903250"]
[WhiteElo "2520"]
[BlackElo "2293"]
[Result "0-1"]
[Round "09"]
[TimeControl "180+2"]
[Date "2023.04.11"]
[WhiteClock "0:00:12"]
[BlackClock "0:00:46"]

1. d4 {[%clk 0:03:00]}  Nf6 {[%clk 0:02:59]} 2. Nf3 {[%clk 0:03:01]}  d5 {[%clk 0:02:59]} 3. Bg5 {[%clk 0:03:01]}  c6 {[%clk 0:02:59]} 4. Nbd2 {[%clk 0:03:00]}  Bf5 {[%clk 0:02:57]} 5. e3 {[%clk 0:02:59]}  e6 {[%clk 0:02:57]} 6. c4 {[%clk 0:02:59]}  h6 {[%clk 0:02:57]} 7. Bh4 {[%clk 0:02:58]}  Nbd7 {[%clk 0:02:57]} 8. Qb3 {[%clk 0:02:56]}  Qb6 {[%clk 0:02:54]} 9. c5 {[%clk 0:02:53]}  Qxb3 {[%clk 0:02:54]} 10. axb3 {[%clk 0:02:54]}  a6 {[%clk 0:02:53]} 11. b4 {[%clk 0:02:54]}  Ne4 {[%clk 0:02:50]} 12. b5 {[%clk 0:02:42]}  g5 {[%clk 0:02:46]} 13. Bg3 {[%clk 0:02:42]}  Nxg3 {[%clk 0:02:46]} 14. hxg3 {[%clk 0:02:42]}  cxb5 {[%clk 0:02:46]} 15. Bxb5 {[%clk 0:02:31]}  O-O-O {[%clk 0:02:45]} 16. Bxd7+ {[%clk 0:02:23]}  Rxd7 {[%clk 0:02:45]} 17. Nxg5 {[%clk 0:01:59]}  e5 {[%clk 0:02:39]} 18. Ngf3 {[%clk 0:01:56]}  exd4 {[%clk 0:02:38]} 19. Nxd4 {[%clk 0:01:51]}  Bg6 {[%clk 0:02:35]} 20. b4 {[%clk 0:01:51]}  Bg7 {[%clk 0:02:34]} 21. N2f3 {[%clk 0:01:51]}  Re8 {[%clk 0:02:33]} 22. O-O {[%clk 0:01:50]}  Be4 {[%clk 0:02:29]} 23. Rfd1 {[%clk 0:01:49]}  Rc7 {[%clk 0:02:26]} 24. c6 {[%clk 0:01:35]}  Rxc6 {[%clk 0:02:03]} 25. Nxc6 {[%clk 0:01:21]}  Bxa1 {[%clk 0:02:03]} 26. Rxa1 {[%clk 0:01:21]}  bxc6 {[%clk 0:02:04]} 27. Rxa6 {[%clk 0:01:21]}  Kb7 {[%clk 0:02:04]} 28. Ra5 {[%clk 0:01:06]}  Bxf3 {[%clk 0:02:00]} 29. gxf3 {[%clk 0:01:06]}  Rb8 {[%clk 0:01:37]} 30. g4 {[%clk 0:00:55]}  Kc7 {[%clk 0:01:36]} 31. Ra7+ {[%clk 0:00:54]}  Rb7 {[%clk 0:01:35]} 32. Ra8 {[%clk 0:00:50]}  Kb6 {[%clk 0:01:25]} 33. Rh8 {[%clk 0:00:42]}  Kb5 {[%clk 0:01:21]} 34. Rxh6 {[%clk 0:00:42]}  Rc7 {[%clk 0:01:22]} 35. f4 {[%clk 0:00:38]}  Kxb4 {[%clk 0:01:23]} 36. g5 {[%clk 0:00:39]}  c5 {[%clk 0:01:23]} 37. Kf1 {[%clk 0:00:36]}  Kc3 {[%clk 0:01:17]} 38. Ke2 {[%clk 0:00:33]}  c4 {[%clk 0:01:17]} 39. Rb6 {[%clk 0:00:31]}  Kc2 {[%clk 0:01:17]} 40. f5 {[%clk 0:00:31]}  c3 {[%clk 0:01:17]} 41. g6 {[%clk 0:00:31]}  fxg6 {[%clk 0:01:16]} 42. fxg6 {[%clk 0:00:32]}  Kc1 {[%clk 0:01:15]} 43. f4 {[%clk 0:00:32]}  Re7 {[%clk 0:01:13]} 44. Kd3 {[%clk 0:00:26]}  Rc7 {[%clk 0:01:13]} 45. f5 {[%clk 0:00:24]}  c2 {[%clk 0:01:14]} 46. Ke2 {[%clk 0:00:23]}  Rg7 {[%clk 0:01:11]} 47. Rb5 {[%clk 0:00:20]}  d4 {[%clk 0:00:50]} 48. exd4 {[%clk 0:00:19]}  Re7+ {[%clk 0:00:49]} 49. Kf3 {[%clk 0:00:18]}  Kd2 {[%clk 0:00:45]} 50. Rc5 {[%clk 0:00:18]}  Re3+ {[%clk 0:00:46]} 51. Kf4 {[%clk 0:00:15]}  Rc3 {[%clk 0:00:45]} 52. Rxc3 {[%clk 0:00:14]}  Kxc3 {[%clk 0:00:46]} 53. g7 {[%clk 0:00:12]}  c1=Q+ {[%clk 0:00:46]} 54. Ke5 {[%clk 0:00:13]}  Qg5 {[%clk 0:00:46]} 55. Ke6 {[%clk 0:00:11]}  Qxg7 {[%clk 0:00:46]} 56. d5 {[%clk 0:00:12]}  Kd4 {[%clk 0:00:45]} 57. f6 {[%clk 0:00:12]}  Qf8 {[%clk 0:00:45]} 58. d6 {[%clk 0:00:12]}  Qe8+ {[%clk 0:00:46]} 59. Kf5 {[%clk 0:00:12]}  Kd5 {[%clk 0:00:46]} 0-1


[Site "https://www.chess.com"]

[Event "Titled Tuesday Blitz April 11 Early 2023"]
[White "Karttunen, Mika"]
[Black "Deng, Henry"]
[WhiteFideId "502081"]
[BlackFideId "30965454"]
[WhiteElo "2396"]
[BlackElo "2514"]
[Result "0-1"]
[Round "09"]
[TimeControl "180+2"]
[Date "2023.04.11"]
[WhiteClock "0:00:37"]
[BlackClock "0:01:21"]

1. d4 {[%clk 0:03:00]}  d5 {[%clk 0:02:59]} 2. c4 {[%clk 0:03:00]}  c6 {[%clk 0:02:59]} 3. Nc3 {[%clk 0:02:59]}  Nf6 {[%clk 0:02:59]} 4. Nf3 {[%clk 0:02:59]}  e6 {[%clk 0:02:58]} 5. Bg5 {[%clk 0:02:56]}  Be7 {[%clk 0:02:58]} 6. e3 {[%clk 0:02:56]}  O-O {[%clk 0:02:58]} 7. Bd3 {[%clk 0:02:55]}  h6 {[%clk 0:02:55]} 8. Bh4 {[%clk 0:02:54]}  dxc4 {[%clk 0:02:54]} 9. Bxc4 {[%clk 0:02:53]}  b5 {[%clk 0:02:52]} 10. Bd3 {[%clk 0:02:53]}  Nbd7 {[%clk 0:02:51]} 11. O-O {[%clk 0:02:49]}  a6 {[%clk 0:02:49]} 12. Ne4 {[%clk 0:02:43]}  c5 {[%clk 0:02:44]} 13. Nxf6+ {[%clk 0:02:19]}  Nxf6 {[%clk 0:02:42]} 14. Rc1 {[%clk 0:02:15]}  cxd4 {[%clk 0:02:33]} 15. Nxd4 {[%clk 0:02:15]}  Bb7 {[%clk 0:02:32]} 16. Nc6 {[%clk 0:02:11]}  Bxc6 {[%clk 0:02:31]} 17. Rxc6 {[%clk 0:02:10]}  Nd5 {[%clk 0:02:32]} 18. Bxe7 {[%clk 0:01:53]}  Qxe7 {[%clk 0:02:30]} 19. a3 {[%clk 0:01:49]}  Rfd8 {[%clk 0:02:25]} 20. Qc2 {[%clk 0:01:46]}  Qd7 {[%clk 0:02:24]} 21. Rc1 {[%clk 0:01:35]}  Kh8 {[%clk 0:02:18]} 22. Be4 {[%clk 0:01:31]}  Rab8 {[%clk 0:02:10]} 23. h3 {[%clk 0:01:30]}  Nb6 {[%clk 0:02:01]} 24. Bf3 {[%clk 0:01:24]}  Rbc8 {[%clk 0:01:56]} 25. Rd1 {[%clk 0:01:11]}  Qe8 {[%clk 0:01:53]} 26. Rxd8 {[%clk 0:01:05]}  Qxd8 {[%clk 0:01:49]} 27. Rxc8 {[%clk 0:01:03]}  Nxc8 {[%clk 0:01:49]} 28. Bb7 {[%clk 0:01:01]}  Nd6 {[%clk 0:01:48]} 29. Bxa6 {[%clk 0:00:50]}  Qa8 {[%clk 0:01:46]} 30. Bxb5 {[%clk 0:00:43]}  Nxb5 {[%clk 0:01:44]} 31. Qc5 {[%clk 0:00:43]}  Qb7 {[%clk 0:01:37]} 32. a4 {[%clk 0:00:43]}  Nc7 {[%clk 0:01:35]} 33. Qf8+ {[%clk 0:00:43]}  Kh7 {[%clk 0:01:33]} 34. Qxf7 {[%clk 0:00:43]}  Qc6 {[%clk 0:01:28]} 35. b4 {[%clk 0:00:39]}  Nd5 {[%clk 0:01:25]} 36. b5 {[%clk 0:00:37]}  Qc1+ {[%clk 0:01:21]} 37. Kh2 {[%clk 0:00:37]}  Qc7+ {[%clk 0:01:22]} 38. g3 {[%clk 0:00:37]}  Qxf7 {[%clk 0:01:21]} 0-1


[Site "https://www.chess.com"]

[Event "Titled Tuesday Blitz April 11 Early 2023"]
[White "Gogolev, Artem"]
[Black "Vlassov, Nikolai"]
[WhiteFideId "4116615"]
[BlackFideId "4103360"]
[WhiteElo "2182"]
[BlackElo "2324"]
[Result "1-0"]
[Round "09"]
[TimeControl "180+2"]
[Date "2023.04.11"]
[WhiteClock "0:00:08"]
[BlackClock "0:00:01"]

1. d4 {[%clk 0:02:56]}  Nf6 {[%clk 0:02:59]} 2. c4 {[%clk 0:02:56]}  Nc6 {[%clk 0:02:59]} 3. Nf3 {[%clk 0:02:55]}  e6 {[%clk 0:02:59]} 4. g3 {[%clk 0:02:54]}  Bb4+ {[%clk 0:02:58]} 5. Nbd2 {[%clk 0:02:54]}  a5 {[%clk 0:02:58]} 6. Bg2 {[%clk 0:02:54]}  d6 {[%clk 0:02:58]} 7. O-O {[%clk 0:02:54]}  e5 {[%clk 0:02:58]} 8. Nb1 {[%clk 0:02:08]}  exd4 {[%clk 0:02:50]} 9. Nxd4 {[%clk 0:02:05]}  Ne5 {[%clk 0:02:49]} 10. h3 {[%clk 0:01:49]}  O-O {[%clk 0:02:48]} 11. b3 {[%clk 0:01:44]}  d5 {[%clk 0:02:39]} 12. cxd5 {[%clk 0:01:34]}  Nxd5 {[%clk 0:02:31]} 13. Bb2 {[%clk 0:01:32]}  c6 {[%clk 0:02:22]} 14. a3 {[%clk 0:01:29]}  Be7 {[%clk 0:02:16]} 15. Nc3 {[%clk 0:01:23]}  Nxc3 {[%clk 0:02:10]} 16. Bxc3 {[%clk 0:01:24]}  Bf6 {[%clk 0:02:08]} 17. e4 {[%clk 0:01:21]}  c5 {[%clk 0:01:59]} 18. Nb5 {[%clk 0:01:19]}  Qb6 {[%clk 0:01:32]} 19. a4 {[%clk 0:01:05]}  Rd8 {[%clk 0:01:26]} 20. Qc2 {[%clk 0:01:05]}  Bd7 {[%clk 0:01:25]} 21. f4 {[%clk 0:01:04]}  Bxb5 {[%clk 0:01:22]} 22. axb5 {[%clk 0:00:59]}  Nd3 {[%clk 0:01:15]} 23. e5 {[%clk 0:00:51]}  Be7 {[%clk 0:01:11]} 24. Be4 {[%clk 0:00:45]}  c4+ {[%clk 0:00:58]} 25. Kg2 {[%clk 0:00:43]}  cxb3 {[%clk 0:00:49]} 26. Qxb3 {[%clk 0:00:38]}  Nc5 {[%clk 0:00:49]} 27. Bxh7+ {[%clk 0:00:29]}  Kxh7 {[%clk 0:00:46]} 28. Qxf7 {[%clk 0:00:28]}  Ne4 {[%clk 0:00:27]} 29. Qf5+ {[%clk 0:00:21]}  Qg6 {[%clk 0:00:24]} 30. Qxg6+ {[%clk 0:00:19]}  Kxg6 {[%clk 0:00:24]} 31. Bxa5 {[%clk 0:00:19]}  Rd3 {[%clk 0:00:19]} 32. f5+ {[%clk 0:00:18]}  Kh7 {[%clk 0:00:17]} 33. g4 {[%clk 0:00:16]}  Bc5 {[%clk 0:00:13]} 34. Rf3 {[%clk 0:00:15]}  Rd5 {[%clk 0:00:11]} 35. h4 {[%clk 0:00:08]}  Rxe5 {[%clk 0:00:10]} 36. Bc3 {[%clk 0:00:07]}  Rxa1 {[%clk 0:00:09]} 37. Bxa1 {[%clk 0:00:08]}  Rd5 {[%clk 0:00:08]} 38. g5 {[%clk 0:00:09]}  Rd2+ {[%clk 0:00:08]} 39. Kh3 {[%clk 0:00:09]}  Nf2+ {[%clk 0:00:08]} 40. Kg3 {[%clk 0:00:09]}  Bd6+ {[%clk 0:00:08]} 41. Kg2 {[%clk 0:00:08]}  Ne4+ {[%clk 0:00:01]} 42. Kh3 {[%clk 0:00:08]} 1-0


[Site "https://www.chess.com"]

[Event "Titled Tuesday Blitz April 11 Early 2023"]
[White "Ibadov, Dashgyn"]
[Black "Petukhov, Dmitry"]
[WhiteFideId "24107514"]
[BlackFideId "4142748"]
[WhiteElo "2208"]
[BlackElo "2311"]
[Result "0-1"]
[Round "09"]
[TimeControl "180+2"]
[Date "2023.04.11"]
[WhiteClock "0:00:01"]
[BlackClock "0:00:04"]

1. e4 {[%clk 0:03:00]}  c5 {[%clk 0:02:57]} 2. Nf3 {[%clk 0:03:00]}  d6 {[%clk 0:02:57]} 3. d4 {[%clk 0:02:58]}  cxd4 {[%clk 0:02:58]} 4. Nxd4 {[%clk 0:02:59]}  Nf6 {[%clk 0:02:57]} 5. Nc3 {[%clk 0:03:00]}  Nc6 {[%clk 0:02:57]} 6. Bg5 {[%clk 0:02:58]}  Bd7 {[%clk 0:02:57]} 7. Bb5 {[%clk 0:02:40]}  a6 {[%clk 0:02:53]} 8. Ba4 {[%clk 0:02:36]}  Qa5 {[%clk 0:02:47]} 9. Bxf6 {[%clk 0:02:34]}  gxf6 {[%clk 0:02:47]} 10. Nxc6 {[%clk 0:02:26]}  bxc6 {[%clk 0:02:43]} 11. Bb3 {[%clk 0:02:26]}  Rg8 {[%clk 0:02:34]} 12. Qf3 {[%clk 0:02:22]}  Rb8 {[%clk 0:02:24]} 13. h3 {[%clk 0:02:16]}  Bg7 {[%clk 0:02:17]} 14. O-O-O {[%clk 0:02:06]}  f5 {[%clk 0:02:12]} 15. Qh5 {[%clk 0:02:06]}  Rf8 {[%clk 0:02:07]} 16. Rd3 {[%clk 0:01:26]}  Qe5 {[%clk 0:02:06]} 17. Re1 {[%clk 0:01:03]}  Qf4+ {[%clk 0:01:50]} 18. Kb1 {[%clk 0:01:00]}  Qxf2 {[%clk 0:01:51]} 19. Qd1 {[%clk 0:00:53]}  f4 {[%clk 0:01:40]} 20. e5 {[%clk 0:00:52]}  d5 {[%clk 0:01:30]} 21. Ne4 {[%clk 0:00:37]}  Qh4 {[%clk 0:01:22]} 22. Nc5 {[%clk 0:00:32]}  e6 {[%clk 0:01:22]} 23. c4 {[%clk 0:00:22]}  Qf2 {[%clk 0:01:17]} 24. cxd5 {[%clk 0:00:20]}  Qxc5 {[%clk 0:01:11]} 25. Rc3 {[%clk 0:00:11]}  Qb6 {[%clk 0:01:03]} 26. dxe6 {[%clk 0:00:11]}  Bxe6 {[%clk 0:00:57]} 27. Qd6 {[%clk 0:00:08]}  Rd8 {[%clk 0:00:51]} 28. Qa3 {[%clk 0:00:08]}  Qf2 {[%clk 0:00:42]} 29. Rec1 {[%clk 0:00:08]}  Bxe5 {[%clk 0:00:29]} 30. Rxc6 {[%clk 0:00:07]}  Bxb3 {[%clk 0:00:16]} 31. Qxb3 {[%clk 0:00:06]}  Rg8 {[%clk 0:00:07]} 32. a3 {[%clk 0:00:03]}  Rxg2 {[%clk 0:00:06]} 33. Re6+ {[%clk 0:00:02]}  Kf8 {[%clk 0:00:06]} 34. Rxe5 {[%clk 0:00:02]}  Qg3 {[%clk 0:00:06]} 35. Qb4+ {[%clk 0:00:01]}  Kg8 {[%clk 0:00:05]} 36. Rcc5 {[%clk 0:00:02]}  Qd3+ {[%clk 0:00:06]} 37. Ka2 {[%clk 0:00:02]}  f3 {[%clk 0:00:04]} 38. Rg5+ {[%clk 0:00:02]}  Rxg5 {[%clk 0:00:04]} 39. Rxg5+ {[%clk 0:00:03]}  Kh8 {[%clk 0:00:05]} 40. Qe7 {[%clk 0:00:01]}  Qc4+ {[%clk 0:00:04]} 41. b3 {[%clk 0:00:01]}  Rd2+ {[%clk 0:00:04]} 42. Kb1 {[%clk 0:00:01]}  Qc2+ {[%clk 0:00:04]} 0-1


[Site "https://www.chess.com"]

[Event "Titled Tuesday Blitz April 11 Early 2023"]
[White "Filgueira, Hernan"]
[Black "Reprintsev, Alexander"]
[WhiteFideId "101770"]
[BlackFideId "14100541"]
[WhiteElo "2363"]
[BlackElo "2211"]
[Result "1-0"]
[Round "09"]
[TimeControl "180+2"]
[Date "2023.04.11"]
[WhiteClock "0:00:22"]
[BlackClock "0:00:06"]

1. c4 {[%clk 0:03:00]}  e5 {[%clk 0:02:57]} 2. Nc3 {[%clk 0:02:59]}  Bb4 {[%clk 0:02:47]} 3. Nd5 {[%clk 0:02:58]}  Be7 {[%clk 0:02:43]} 4. e3 {[%clk 0:02:56]}  Nf6 {[%clk 0:02:38]} 5. Ne2 {[%clk 0:02:52]}  Nxd5 {[%clk 0:02:37]} 6. cxd5 {[%clk 0:02:52]}  c6 {[%clk 0:02:35]} 7. Nc3 {[%clk 0:02:51]}  O-O {[%clk 0:02:30]} 8. Qc2 {[%clk 0:02:50]}  f5 {[%clk 0:02:19]} 9. Be2 {[%clk 0:02:44]}  d6 {[%clk 0:02:12]} 10. d3 {[%clk 0:02:39]}  Na6 {[%clk 0:02:10]} 11. a3 {[%clk 0:02:38]}  Nc7 {[%clk 0:02:10]} 12. Bf3 {[%clk 0:02:38]}  Bd7 {[%clk 0:02:06]} 13. Bd2 {[%clk 0:02:36]}  Qe8 {[%clk 0:02:04]} 14. Qb3 {[%clk 0:02:29]}  cxd5 {[%clk 0:01:52]} 15. Qxb7 {[%clk 0:02:13]}  e4 {[%clk 0:01:51]} 16. Be2 {[%clk 0:02:05]}  Qc8 {[%clk 0:01:48]} 17. Qxc8 {[%clk 0:01:57]}  Rfxc8 {[%clk 0:01:47]} 18. dxe4 {[%clk 0:01:57]}  dxe4 {[%clk 0:01:43]} 19. O-O {[%clk 0:01:44]}  Be6 {[%clk 0:01:37]} 20. b4 {[%clk 0:01:41]}  Kf7 {[%clk 0:01:30]} 21. f3 {[%clk 0:01:40]}  exf3 {[%clk 0:01:24]} 22. Bxf3 {[%clk 0:01:39]}  d5 {[%clk 0:01:23]} 23. g4 {[%clk 0:01:34]}  g6 {[%clk 0:01:22]} 24. gxf5 {[%clk 0:01:30]}  gxf5 {[%clk 0:01:22]} 25. Rac1 {[%clk 0:01:25]}  Bf6 {[%clk 0:01:19]} 26. a4 {[%clk 0:01:10]}  Rab8 {[%clk 0:01:18]} 27. b5 {[%clk 0:01:07]}  a6 {[%clk 0:01:18]} 28. Be2 {[%clk 0:01:06]}  axb5 {[%clk 0:01:16]} 29. Nxb5 {[%clk 0:01:05]}  Nxb5 {[%clk 0:01:15]} 30. Bxb5 {[%clk 0:00:58]}  Bb2 {[%clk 0:01:07]} 31. Rxc8 {[%clk 0:00:51]}  Rxc8 {[%clk 0:01:06]} 32. Bd3 {[%clk 0:00:49]}  Kf6 {[%clk 0:00:59]} 33. Kf2 {[%clk 0:00:45]}  Bc3 {[%clk 0:00:58]} 34. Ke2 {[%clk 0:00:42]}  Bxd2 {[%clk 0:00:57]} 35. Kxd2 {[%clk 0:00:42]}  Ke5 {[%clk 0:00:51]} 36. a5 {[%clk 0:00:41]}  Ra8 {[%clk 0:00:38]} 37. a6 {[%clk 0:00:40]}  Bc8 {[%clk 0:00:38]} 38. Ra1 {[%clk 0:00:40]}  Ra7 {[%clk 0:00:38]} 39. Ra5 {[%clk 0:00:36]}  Kd6 {[%clk 0:00:33]} 40. Ra4 {[%clk 0:00:32]}  Kc5 {[%clk 0:00:28]} 41. Ra5+ {[%clk 0:00:23]}  Kc6 {[%clk 0:00:26]} 42. Ra4 {[%clk 0:00:20]}  Kb6 {[%clk 0:00:20]} 43. Rh4 {[%clk 0:00:19]}  Bxa6 {[%clk 0:00:17]} 44. Rh6+ {[%clk 0:00:19]}  Ka5 {[%clk 0:00:17]} 45. Bxf5 {[%clk 0:00:20]}  Bc4 {[%clk 0:00:14]} 46. Rxh7 {[%clk 0:00:19]}  Ra6 {[%clk 0:00:14]} 47. Bc2 {[%clk 0:00:19]}  Rf6 {[%clk 0:00:13]} 48. Kc3 {[%clk 0:00:19]}  Rf3 {[%clk 0:00:11]} 49. Kd4 {[%clk 0:00:20]}  Rf2 {[%clk 0:00:12]} 50. Bg6 {[%clk 0:00:19]}  Rd2+ {[%clk 0:00:11]} 51. Kc5 {[%clk 0:00:19]}  Ka4 {[%clk 0:00:08]} 52. Ra7+ {[%clk 0:00:19]}  Kb3 {[%clk 0:00:08]} 53. h4 {[%clk 0:00:20]}  Re2 {[%clk 0:00:07]} 54. h5 {[%clk 0:00:20]}  Rxe3 {[%clk 0:00:07]} 55. h6 {[%clk 0:00:21]}  Rh3 {[%clk 0:00:08]} 56. h7 {[%clk 0:00:21]}  Kb2 {[%clk 0:00:07]} 57. Ra8 {[%clk 0:00:22]}  Bb3 {[%clk 0:00:06]} 58. h8=Q+ {[%clk 0:00:22]}  Rxh8 {[%clk 0:00:06]} 59. Rxh8 {[%clk 0:00:22]} 1-0


[Site "https://www.chess.com"]

[Event "Titled Tuesday Blitz April 11 Early 2023"]
[White "Pniaczek, Marek"]
[Black "Cori T., Deysi"]
[WhiteFideId "21800421"]
[BlackFideId "3801934"]
[WhiteElo "2138"]
[BlackElo "2292"]
[Result "0-1"]
[Round "09"]
[TimeControl "180+2"]
[Date "2023.04.11"]
[WhiteClock "0:00:07"]
[BlackClock "0:00:12"]

1. e4 {[%clk 0:02:56]}  d6 {[%clk 0:02:59]} 2. d4 {[%clk 0:02:55]}  g6 {[%clk 0:03:00]} 3. Nc3 {[%clk 0:02:50]}  Bg7 {[%clk 0:03:00]} 4. Bg5 {[%clk 0:02:44]}  c6 {[%clk 0:03:00]} 5. Qd2 {[%clk 0:02:42]}  b5 {[%clk 0:02:58]} 6. Nf3 {[%clk 0:02:24]}  Bg4 {[%clk 0:02:57]} 7. Be2 {[%clk 0:02:23]}  Qb6 {[%clk 0:02:55]} 8. Be3 {[%clk 0:02:20]}  b4 {[%clk 0:02:46]} 9. Na4 {[%clk 0:02:18]}  Qa5 {[%clk 0:02:46]} 10. b3 {[%clk 0:02:18]}  Nf6 {[%clk 0:02:44]} 11. Qd3 {[%clk 0:02:12]}  Nbd7 {[%clk 0:02:03]} 12. h3 {[%clk 0:02:09]}  Bxf3 {[%clk 0:02:01]} 13. Bxf3 {[%clk 0:02:09]}  O-O {[%clk 0:02:02]} 14. O-O {[%clk 0:02:05]}  Nb6 {[%clk 0:02:01]} 15. a3 {[%clk 0:02:00]}  bxa3 {[%clk 0:01:38]} 16. Rxa3 {[%clk 0:01:58]}  Nfd7 {[%clk 0:01:34]} 17. Rfa1 {[%clk 0:01:53]}  Nxa4 {[%clk 0:01:24]} 18. Rxa4 {[%clk 0:01:53]}  Qc7 {[%clk 0:01:23]} 19. c3 {[%clk 0:01:47]}  Rfb8 {[%clk 0:01:21]} 20. b4 {[%clk 0:01:46]}  e5 {[%clk 0:01:15]} 21. Qd2 {[%clk 0:01:29]}  exd4 {[%clk 0:01:13]} 22. cxd4 {[%clk 0:01:28]}  Nb6 {[%clk 0:01:13]} 23. Ra6 {[%clk 0:01:25]}  Nc4 {[%clk 0:01:13]} 24. Qc3 {[%clk 0:01:24]}  Nxe3 {[%clk 0:01:10]} 25. Rxc6 {[%clk 0:01:16]}  Qe7 {[%clk 0:00:26]} 26. fxe3 {[%clk 0:01:13]}  Bh6 {[%clk 0:00:25]} 27. Kh1 {[%clk 0:01:03]}  Qh4 {[%clk 0:00:15]} 28. Rxd6 {[%clk 0:00:55]}  Rc8 {[%clk 0:00:15]} 29. Rc6 {[%clk 0:00:50]}  Rd8 {[%clk 0:00:15]} 30. e5 {[%clk 0:00:47]}  Qg3 {[%clk 0:00:14]} 31. Rc7 {[%clk 0:00:40]}  Rab8 {[%clk 0:00:13]} 32. Raxa7 {[%clk 0:00:29]}  Rf8 {[%clk 0:00:13]} 33. d5 {[%clk 0:00:17]}  Qf2 {[%clk 0:00:13]} 34. Qc2 {[%clk 0:00:16]}  Qe1+ {[%clk 0:00:12]} 35. Kh2 {[%clk 0:00:16]}  Bxe3 {[%clk 0:00:13]} 36. Rc4 {[%clk 0:00:06]}  Bg1+ {[%clk 0:00:11]} 37. Kh1 {[%clk 0:00:07]}  Bf2+ {[%clk 0:00:12]} 38. Kh2 {[%clk 0:00:07]}  Qg1# {[%clk 0:00:12]} 0-1


[Site "https://www.chess.com"]

[Event "Titled Tuesday Blitz April 11 Early 2023"]
[White "Melian, Juan Sebastian"]
[Black "Leebit02"]
[WhiteFideId "3706575"]
[WhiteElo "2035"]
[BlackElo "2458"]
[Result "1-0"]
[Round "09"]
[TimeControl "180+2"]
[Date "2023.04.11"]
[WhiteClock "0:00:02"]
[BlackClock "0:00:05"]

1. d4 {[%clk 0:02:48]}  Nf6 {[%clk 0:02:59]} 2. Bg5 {[%clk 0:02:48]}  d5 {[%clk 0:02:41]} 3. e3 {[%clk 0:02:46]}  Ne4 {[%clk 0:02:31]} 4. Bf4 {[%clk 0:02:45]}  c5 {[%clk 0:02:24]} 5. c3 {[%clk 0:02:45]}  Nc6 {[%clk 0:02:22]} 6. Nf3 {[%clk 0:02:41]}  Bf5 {[%clk 0:02:16]} 7. Nbd2 {[%clk 0:02:41]}  Qb6 {[%clk 0:02:12]} 8. Qb3 {[%clk 0:02:39]}  e6 {[%clk 0:02:04]} 9. Be2 {[%clk 0:02:20]}  Be7 {[%clk 0:01:54]} 10. O-O {[%clk 0:02:20]}  O-O {[%clk 0:01:53]} 11. Nxe4 {[%clk 0:02:19]}  Bxe4 {[%clk 0:01:52]} 12. Nd2 {[%clk 0:02:19]}  Bg6 {[%clk 0:01:53]} 13. Rfe1 {[%clk 0:02:10]}  Rfc8 {[%clk 0:01:52]} 14. dxc5 {[%clk 0:01:58]}  Bxc5 {[%clk 0:01:50]} 15. Nf3 {[%clk 0:01:49]}  f6 {[%clk 0:01:33]} 16. Bg3 {[%clk 0:01:44]}  Bf7 {[%clk 0:01:30]} 17. Rad1 {[%clk 0:01:35]}  Na5 {[%clk 0:01:28]} 18. Qc2 {[%clk 0:01:31]}  e5 {[%clk 0:01:19]} 19. Qb1 {[%clk 0:01:28]}  Nc4 {[%clk 0:01:16]} 20. Bxc4 {[%clk 0:01:25]}  dxc4 {[%clk 0:01:16]} 21. Nd2 {[%clk 0:01:07]}  Rd8 {[%clk 0:01:12]} 22. Qc1 {[%clk 0:00:58]}  Rd3 {[%clk 0:01:08]} 23. b3 {[%clk 0:00:47]}  cxb3 {[%clk 0:01:00]} 24. axb3 {[%clk 0:00:48]}  Rad8 {[%clk 0:00:57]} 25. b4 {[%clk 0:00:46]}  Be7 {[%clk 0:00:55]} 26. Nf3 {[%clk 0:00:40]}  Qc6 {[%clk 0:00:54]} 27. Rxd3 {[%clk 0:00:33]}  Rxd3 {[%clk 0:00:54]} 28. Qa3 {[%clk 0:00:15]}  a6 {[%clk 0:00:36]} 29. Rc1 {[%clk 0:00:14]}  h5 {[%clk 0:00:31]} 30. h4 {[%clk 0:00:11]}  Bd5 {[%clk 0:00:27]} 31. Ne1 {[%clk 0:00:11]}  Rd2 {[%clk 0:00:25]} 32. Qa1 {[%clk 0:00:10]}  Qc4 {[%clk 0:00:24]} 33. Qa5 {[%clk 0:00:09]}  Qe2 {[%clk 0:00:22]} 34. Qb6 {[%clk 0:00:09]}  Rd1 {[%clk 0:00:21]} 35. Rxd1 {[%clk 0:00:10]}  Qxd1 {[%clk 0:00:22]} 36. f3 {[%clk 0:00:11]}  Bc4 {[%clk 0:00:20]} 37. Kh2 {[%clk 0:00:10]}  Qd5 {[%clk 0:00:20]} 38. Qc7 {[%clk 0:00:10]}  Qe6 {[%clk 0:00:19]} 39. e4 {[%clk 0:00:10]}  b5 {[%clk 0:00:18]} 40. Qb8+ {[%clk 0:00:10]}  Kh7 {[%clk 0:00:18]} 41. Nc2 {[%clk 0:00:11]}  Bd6 {[%clk 0:00:18]} 42. Qa8 {[%clk 0:00:09]}  Bd3 {[%clk 0:00:18]} 43. Ne3 {[%clk 0:00:09]}  Be7 {[%clk 0:00:16]} 44. Nf5 {[%clk 0:00:10]}  g6 {[%clk 0:00:12]} 45. Nxe7 {[%clk 0:00:08]}  Qxe7 {[%clk 0:00:13]} 46. Qxa6 {[%clk 0:00:09]}  Qf7 {[%clk 0:00:10]} 47. Bf2 {[%clk 0:00:09]}  Kg7 {[%clk 0:00:10]} 48. Bc5 {[%clk 0:00:09]}  Qd7 {[%clk 0:00:10]} 49. Qa8 {[%clk 0:00:09]}  Qf7 {[%clk 0:00:11]} 50. Qd8 {[%clk 0:00:10]}  Bc4 {[%clk 0:00:10]} 51. Be7 {[%clk 0:00:10]}  Be6 {[%clk 0:00:10]} 52. Bd6 {[%clk 0:00:09]}  Bc4 {[%clk 0:00:10]} 53. Bc5 {[%clk 0:00:10]}  Be6 {[%clk 0:00:10]} 54. Qb8 {[%clk 0:00:10]}  Bc4 {[%clk 0:00:11]} 55. Kg1 {[%clk 0:00:11]}  Qe6 {[%clk 0:00:11]} 56. Qf8+ {[%clk 0:00:11]}  Kh7 {[%clk 0:00:11]} 57. Kh2 {[%clk 0:00:10]}  Qf7 {[%clk 0:00:11]} 58. Qd8 {[%clk 0:00:10]}  Kg7 {[%clk 0:00:11]} 59. Be7 {[%clk 0:00:11]}  Be6 {[%clk 0:00:12]} 60. Bd6 {[%clk 0:00:11]}  Bc4 {[%clk 0:00:12]} 61. Bc5 {[%clk 0:00:12]}  Be6 {[%clk 0:00:13]} 62. Kg1 {[%clk 0:00:12]}  Bc4 {[%clk 0:00:13]} 63. Kf2 {[%clk 0:00:13]}  Be6 {[%clk 0:00:13]} 64. Qb8 {[%clk 0:00:13]}  Qd7 {[%clk 0:00:13]} 65. Qf8+ {[%clk 0:00:12]}  Kh7 {[%clk 0:00:13]} 66. Bd6 {[%clk 0:00:11]}  Qf7 {[%clk 0:00:12]} 67. Qd8 {[%clk 0:00:10]}  Bc4 {[%clk 0:00:12]} 68. Kg3 {[%clk 0:00:09]}  Kg7 {[%clk 0:00:12]} 69. Qb8 {[%clk 0:00:09]}  Qd7 {[%clk 0:00:11]} 70. Kh2 {[%clk 0:00:09]}  Qf7 {[%clk 0:00:11]} 71. g4 {[%clk 0:00:09]}  hxg4 {[%clk 0:00:11]} 72. fxg4 {[%clk 0:00:10]}  Qe6 {[%clk 0:00:10]} 73. Qf8+ {[%clk 0:00:10]}  Kh7 {[%clk 0:00:11]} 74. Kg3 {[%clk 0:00:10]}  Qf7 {[%clk 0:00:10]} 75. Qd8 {[%clk 0:00:10]}  Qe6 {[%clk 0:00:10]} 76. h5 {[%clk 0:00:06]}  gxh5 {[%clk 0:00:08]} 77. gxh5 {[%clk 0:00:07]}  f5 {[%clk 0:00:09]} 78. exf5 {[%clk 0:00:05]}  Qxf5 {[%clk 0:00:08]} 79. Qe7+ {[%clk 0:00:05]}  Kh6 {[%clk 0:00:08]} 80. Bxe5 {[%clk 0:00:04]}  Qd3+ {[%clk 0:00:05]} 81. Kg4 {[%clk 0:00:02]}  Qe4+ {[%clk 0:00:05]} 82. Bf4+ {[%clk 0:00:02]} 1-0


[Site "https://www.chess.com"]